bitfinex-derivatives/quotes_BTCF0:USTF0_20250315
["timestamp","ask_amount","ask_price","bid_price","bid_amount"]
[1742067902140,0.0608,84313.0,84312.0,0.26370293]
[1742067902735,0.0303,84313.0,84312.0,0.26370293]
[1742067904443,0.1489032,84313.0,84312.0,0.26370293]
[1742067904744,0.0625,84313.0,84312.0,0.26370293]
[1742067905245,0.0303,84313.0,84312.0,0.26370293]
[1742067905431,4e-05,84314.0,84313.0,0.1186032]
[1742067905632,4e-05,84314.0,84313.0,0.4500032]
[1742067907734,0.03294,84314.0,84313.0,0.4500032]
[1742067907934,0.06484,84314.0,84313.0,0.4500032]
[1742067910144,0.1834418,84314.0,84313.0,0.4500032]
[1742067910342,0.06484,84314.0,84313.0,0.4500032]
[1742067910641,0.1834418,84314.0,84313.0,0.4500032]
[1742067913948,0.1834418,84314.0,84313.0,0.4197032]
[1742067914149,0.1834018,84314.0,84313.0,0.3886032]
[1742067914350,0.1834018,84314.0,84313.0,0.1186032]
[1742067915145,0.1834018,84314.0,84313.0,0.1820032]
[1742067948682,0.18349033,84314.0,84313.0,0.1820032]
[1742067958294,0.18349033,84314.0,84313.0,0.1920032]
[1742067962899,0.18349033,84314.0,84313.0,0.0734]
[1742067963297,0.18349033,84314.0,84313.0,0.1920032]
[1742067964587,0.18349033,84314.0,84313.0,0.2250032]
[1742067965898,0.18349033,84314.0,84313.0,0.1920032]
[1742067968800,0.06488853,84314.0,84313.0,0.1920032]
[1742067969103,8.853e-05,84314.0,84313.0,0.2223032]
[1742067970197,0.03228853,84314.0,84313.0,0.2223032]
[1742067970599,0.15089033,84314.0,84313.0,0.2223032]
[1742067972395,0.18309033,84314.0,84313.0,0.2223032]
[1742067992426,0.18309033,84314.0,84313.0,0.2123032]
[1742067998629,0.15089033,84314.0,84313.0,0.2123032]
[1742068000127,0.03228853,84314.0,84313.0,0.2123032]
[1742068000432,8.853e-05,84314.0,84313.0,0.2823032]
[1742068001037,0.11869033,84314.0,84313.0,0.2823032]
[1742068001232,0.18219033,84314.0,84313.0,0.2823032]
[1742068001641,0.18219033,84314.0,84313.0,0.1637]
[1742068001822,0.21319033,84314.0,84313.0,0.2823032]
[1742068005232,0.11869033,84314.0,84313.0,0.2823032]
[1742068008026,8.853e-05,84314.0,84313.0,0.2823032]
[1742068008534,0.11869033,84314.0,84313.0,0.2823032]
[1742068008732,8.853e-05,84314.0,84313.0,0.2823032]
[1742068009937,8.853e-05,84314.0,84313.0,0.3023032]
[1742068010235,8.853e-05,84314.0,84313.0,0.31603056]
[1742068011744,8.853e-05,84314.0,84313.0,0.82603056]
[1742068011925,8.853e-05,84314.0,84313.0,0.29603056]
[1742068012325,0.11568,84325.0,84324.0,0.0592939]
[1742068012531,0.11568,84325.0,84324.0,0.4078817]
[1742068014041,0.11568,84325.0,84324.0,0.4408217]
[1742068016040,0.1185841,84327.0,84326.0,0.118585]
[1742068016740,0.1185841,84327.0,84326.0,0.150585]
[1742068017436,0.1490841,84327.0,84326.0,0.150585]
[1742068018140,0.0305,84327.0,84326.0,0.150585]
[1742068018339,0.1490836,84327.0,84326.0,0.150585]
[1742068021043,0.1490836,84327.0,84326.0,0.162616]
[1742068022427,0.1512036,84327.0,84326.0,0.150585]
[1742068022632,0.1512036,84327.0,84326.0,0.150625]
[1742068023944,0.1512036,84327.0,84326.0,0.16243428]
[1742068025246,0.1207036,84327.0,84326.0,0.16243428]
[1742068025729,0.00212,84327.0,84326.0,0.16243428]
[1742068025929,0.1821036,84327.0,84326.0,0.16243428]
[1742068026951,0.1799836,84327.0,84326.0,0.16243428]
[1742068027339,0.1799836,84327.0,84326.0,0.16239428]
[1742068027646,0.1821036,84327.0,84326.0,0.16239428]
[1742068028046,0.1821036,84327.0,84326.0,0.16243428]
[1742068029145,0.00212,84327.0,84326.0,0.30243428]
[1742068029449,0.00212,84327.0,84326.0,0.31589095]
[1742068032045,0.00212,84327.0,84326.0,0.30243428]
[1742068037252,0.00212,84327.0,84326.0,0.33243428]
[1742068039653,0.00212,84327.0,84326.0,0.34588372]
[1742068040852,0.00212,84327.0,84326.0,0.39588372]
[1742068042241,4e-05,84330.0,84329.0,0.1185807]
[1742068042454,0.0094532,84354.0,84329.0,0.6208]
[1742068042751,0.12032728,84352.0,84351.0,0.1185498]
[1742068043451,0.18272728,84352.0,84351.0,0.1801498]
[1742068043649,0.18272728,84352.0,84351.0,0.19193964]
[1742068044255,0.18272728,84352.0,84351.0,0.40193964]
[1742068045059,0.18272728,84352.0,84351.0,0.41525912]
[1742068045859,0.18272728,84352.0,84351.0,0.40193964]
[1742068047368,0.18272728,84352.0,84351.0,0.21]
[1742068048064,0.18272728,84352.0,84351.0,0.3285498]
[1742068048960,0.18272728,84352.0,84351.0,0.3920498]
[1742068050362,0.18272728,84352.0,84351.0,0.3285498]
[1742068051255,0.29784728,84352.0,84351.0,0.3285498]
[1742068051967,0.29784728,84352.0,84351.0,0.3604498]
[1742068052864,0.29784728,84352.0,84351.0,0.3922498]
[1742068056570,0.29784728,84352.0,84351.0,0.1822498]
[1742068057362,0.18272728,84352.0,84351.0,0.1822498]
[1742068058565,0.18272728,84352.0,84351.0,0.1504498]
[1742068058766,0.18272728,84352.0,84351.0,0.1185498]
[1742068060775,0.18272728,84352.0,84351.0,0.1486498]
[1742068062271,0.18272728,84352.0,84351.0,0.1811498]
[1742068066975,0.18272728,84352.0,84351.0,0.0301]
[1742068067178,0.1185554,84348.0,84347.0,0.118555]
[1742068067371,0.1185554,84348.0,84347.0,0.150655]
[1742068067675,0.1804554,84348.0,84347.0,0.150655]
[1742068076180,0.1804554,84348.0,84347.0,0.0321]
[1742068076571,0.1804554,84348.0,84347.0,0.0626]
[1742068078785,0.1804554,84348.0,84347.0,0.1811554]
[1742068081383,0.5412554,84348.0,84347.0,0.1811554]
[1742068084485,0.6557354,84348.0,84347.0,0.1811554]
[1742068085591,0.5412554,84348.0,84347.0,0.1811554]
[1742068085781,0.6556554,84348.0,84347.0,0.1811554]
[1742068086891,0.2948554,84348.0,84347.0,0.1811554]
[1742068087192,0.2948154,84348.0,84347.0,0.1811554]
[1742068088089,0.2328754,84348.0,84347.0,0.1811554]
[1742068091096,0.1185554,84348.0,84347.0,0.1811554]
[1742068091301,0.1185554,84348.0,84347.0,0.4211554]
[1742068091489,0.1185554,84348.0,84347.0,0.1811554]
[1742068093281,0.5349542,84352.0,84348.0,0.059277]
[1742068093484,0.3608,84352.0,84351.0,0.1185498]
[1742068093680,0.3608,84352.0,84351.0,0.1785498]
[1742068094988,4e-05,84354.0,84353.0,0.118547]
[1742068095187,0.1185856,84354.0,84353.0,0.118547]
[1742068095585,0.1185856,84354.0,84353.0,0.473347]
[1742068095787,0.1185856,84354.0,84353.0,0.183347]
[1742068099299,0.1185856,84354.0,84353.0,0.433347]
[1742068099600,0.1185856,84354.0,84353.0,0.183347]
[1742068103307,0.1185856,84354.0,84353.0,0.423347]
[1742068105821,0.1826856,84354.0,84353.0,0.423347]
[1742068108496,0.1498856,84354.0,84353.0,0.423347]
[1742068112107,0.03134,84354.0,84353.0,0.423347]
[1742068112317,4e-05,84354.0,84353.0,0.423347]
[1742068112520,0.1185856,84354.0,84353.0,0.423347]
[1742068114201,4e-05,84354.0,84353.0,0.423347]
[1742068116018,0.0319,84355.0,84354.0,0.1185456]
[1742068116218,0.0319,84355.0,84354.0,0.3585456]
[1742068116515,0.03194,84355.0,84354.0,0.4206456]
[1742068118516,4e-05,84355.0,84354.0,0.4206456]
[1742068126027,0.1829371,84361.0,84360.0,0.1185372]
[1742068126811,0.1829371,84361.0,84360.0,0.1813372]
[1742068128422,0.1829371,84361.0,84360.0,0.19336194]
[1742068141033,0.0592735,84353.0,84343.0,0.00017793]
[1742068141225,0.1185639,84341.0,84340.0,0.00177848]
[1742068141430,0.5938439,84341.0,84340.0,0.00177848]
[1742068142039,0.6563439,84341.0,84340.0,0.00177848]
[1742068146147,0.1185667,84339.0,84338.0,0.1185673]
[1742068146347,0.1185667,84339.0,84338.0,0.1502673]
[1742068146549,0.1185667,84339.0,84338.0,0.1815673]
[1742068148447,0.1185667,84339.0,84338.0,0.063]
[1742068148639,0.1185751,84333.0,84332.0,0.11875433]
[1742068148838,0.4793751,84333.0,84332.0,0.11875433]
[1742068149739,0.4793751,84333.0,84332.0,0.12175433]
[1742068149940,0.4793751,84333.0,84332.0,0.18555433]
[1742068150449,0.5443751,84333.0,84332.0,0.18555433]
[1742068153343,0.5443751,84333.0,84332.0,0.06697783]
[1742068153544,0.55646629,84333.0,84332.0,0.06697783]
[1742068156146,0.55646629,84333.0,84310.0,0.36188]
[1742068156147,0.81789119,84333.0,84310.0,0.36188]
[1742068156447,0.1186201,84301.0,84300.0,0.21354622]
[1742068156658,0.1186201,84301.0,84300.0,0.26354622]
[1742068157044,0.2332201,84301.0,84300.0,0.22354622]
[1742068157458,0.2312201,84301.0,84300.0,0.01]
[1742068157944,0.2312201,84301.0,84300.0,0.0717]
[1742068158144,0.2927201,84301.0,84300.0,0.1903215]
[1742068158949,0.2927201,84301.0,84300.0,0.0717]
[1742068159145,0.2937201,84301.0,84300.0,0.1903215]
[1742068160457,0.2937201,84301.0,84300.0,0.2215215]
[1742068161152,0.2605201,84301.0,84300.0,0.2115215]
[1742068161350,0.47536,84307.0,84306.0,0.1186131]
[1742068161654,0.5939721,84307.0,84306.0,0.3786131]
[1742068161863,0.2331721,84307.0,84306.0,0.3786131]
[1742068162241,0.2331721,84307.0,84306.0,0.4435131]
[1742068162644,0.2362121,84307.0,84306.0,0.4435131]
[1742068163560,0.1216121,84307.0,84306.0,0.4435131]
[1742068164263,0.003,84307.0,84306.0,0.4435131]
[1742068164762,0.1246117,84307.0,84306.0,0.4435131]
[1742068169153,0.006,84307.0,84306.0,0.4435131]
[1742068170555,0.1246117,84307.0,84306.0,0.4435131]
[1742068170961,0.3646117,84307.0,84300.0,4e-05]
[1742068171162,0.1186201,84301.0,84300.0,4e-05]
[1742068171564,0.1186286,84295.0,84294.0,0.0312]
[1742068171769,0.2332686,84295.0,84294.0,0.0312]
[1742068171967,0.2332686,84295.0,84294.0,0.03124]
[1742068172465,0.2983686,84295.0,84294.0,0.03124]
[1742068172767,0.2983686,84295.0,84294.0,0.0312]
[1742068173768,0.2983686,84295.0,84294.0,0.063]
[1742068174170,0.3103686,84295.0,84294.0,0.063]
[1742068189074,0.3103686,84295.0,84294.0,0.18163]
[1742068192671,0.3103686,84295.0,84294.0,0.063]
[1742068193684,0.6711686,84295.0,84294.0,0.063]
[1742068197985,0.6711686,84295.0,84294.0,0.18163]
[1742068200374,0.6060686,84295.0,84294.0,0.18163]
[1742068201184,0.6370686,84295.0,84294.0,0.18163]
[1742068201588,0.6060686,84295.0,84294.0,0.18163]
[1742068204004,0.6386686,84295.0,84294.0,0.18163]
[1742068204880,0.2778686,84295.0,84294.0,0.18163]
[1742068205081,0.6386686,84295.0,84294.0,0.18163]
[1742068218907,0.6698686,84295.0,84294.0,0.18163]
[1742068221614,0.6688686,84295.0,84294.0,0.18163]
[1742068221802,0.6678686,84295.0,84294.0,0.18163]
[1742068222711,0.6628686,84295.0,84294.0,0.18163]
[1742068223013,0.6678686,84295.0,84294.0,0.18163]
[1742068223809,0.3070686,84295.0,84294.0,0.18163]
[1742068224010,0.6678686,84295.0,84294.0,0.18163]
[1742068228105,0.6628686,84295.0,84294.0,0.18163]
[1742068228305,0.6678686,84295.0,84294.0,0.18163]
[1742068232715,0.3070686,84295.0,84294.0,0.18163]
[1742068232915,0.6678686,84295.0,84294.0,0.18163]
[1742068235806,0.6628686,84295.0,84294.0,0.18163]
[1742068236015,0.6678686,84295.0,84294.0,0.18163]
[1742068239413,0.3070686,84295.0,84294.0,0.18163]
[1742068239813,0.6678686,84295.0,84294.0,0.18163]
[1742068240828,0.5532286,84295.0,84294.0,0.18163]
[1742068241029,0.6673086,84295.0,84294.0,0.18163]
[1742068241729,0.3065086,84295.0,84294.0,0.18163]
[1742068242027,0.6673086,84295.0,84294.0,0.18163]
[1742068247621,0.00017793,84309.0,84303.0,0.1186173]
[1742068247822,0.00017793,84309.0,84308.0,0.1186103]
[1742068248017,0.00017793,84309.0,84308.0,0.4518103]
[1742068248920,0.00617793,84309.0,84308.0,0.4518103]
[1742068249116,0.01217793,84309.0,84308.0,0.4518103]
[1742068249634,0.00617793,84309.0,84308.0,0.4518103]
[1742068249932,0.01217793,84309.0,84308.0,0.4518103]
[1742068251923,0.01217793,84309.0,84308.0,0.8126103]
[1742068252633,0.01217793,84309.0,84308.0,0.82426253]
[1742068252634,0.13078683,84309.0,84308.0,0.82426253]
[1742068258039,0.11978683,84309.0,84308.0,0.82426253]
[1742068258234,0.12178683,84309.0,84308.0,0.82426253]
[1742068261741,0.11978683,84309.0,84308.0,0.82426253]
[1742068261933,0.12178683,84309.0,84308.0,0.82426253]
[1742068264734,0.18358683,84309.0,84308.0,0.82426253]
[1742068264943,0.18358683,84309.0,84308.0,0.55426253]
[1742068265745,0.18158683,84309.0,84308.0,0.55426253]
[1742068265930,0.18358683,84309.0,84308.0,0.55426253]
[1742068267744,0.42358683,84309.0,84308.0,0.55426253]
[1742068267936,0.18358683,84309.0,84308.0,0.55426253]
[1742068272436,0.18358683,84309.0,84308.0,0.81426253]
[1742068272639,0.18358683,84309.0,84308.0,0.55426253]
[1742068276448,0.12178683,84309.0,84308.0,0.78426253]
[1742068278051,0.12178683,84309.0,84308.0,0.55426253]
[1742068278354,0.35178683,84309.0,84308.0,0.55426253]
[1742068278545,0.12178683,84309.0,84308.0,0.55426253]
[1742068278845,0.18388683,84309.0,84308.0,0.55426253]
[1742068287555,0.15368683,84309.0,84308.0,0.55426253]
[1742068288258,0.15368683,84309.0,84308.0,0.82426253]
[1742068292057,0.15368683,84309.0,84308.0,0.55426253]
[1742068292359,0.15368683,84309.0,84308.0,0.81426253]
[1742068294065,0.15368683,84309.0,84308.0,0.79426253]
[1742068297967,0.15368683,84309.0,84308.0,0.55426253]
[1742068298158,0.15368683,84309.0,84308.0,0.82426253]
[1742068299957,0.15368683,84309.0,84308.0,0.55426253]
[1742068300161,0.15368683,84309.0,84308.0,0.80426253]
[1742068305871,0.15368683,84309.0,84308.0,0.19346253]
[1742068306070,0.15368683,84309.0,84308.0,0.82426253]
[1742068307565,0.15368683,84309.0,84308.0,0.46346253]
[1742068307870,0.15368683,84309.0,84308.0,0.82426253]
[1742068310869,0.18668683,84309.0,84308.0,0.82426253]
[1742068314775,0.18668683,84309.0,84308.0,0.46346253]
[1742068314975,0.18668683,84309.0,84308.0,0.82426253]
[1742068316783,0.18668683,84309.0,84308.0,0.46346253]
[1742068316981,0.18668683,84309.0,84308.0,0.82426253]
[1742068321578,0.18668683,84309.0,84308.0,0.55426253]
[1742068321780,0.18668683,84309.0,84308.0,0.79426253]
[1742068322077,0.18668683,84309.0,84308.0,0.83426253]
[1742068322278,0.18668683,84309.0,84308.0,0.55426253]
[1742068323371,0.18668683,84309.0,84308.0,0.19346253]
[1742068323574,0.18668683,84309.0,84308.0,0.42346253]
[1742068323879,0.18668683,84309.0,84308.0,0.46346253]
[1742068324080,0.30068683,84309.0,84308.0,0.46346253]
[1742068327786,0.30068683,84309.0,84308.0,0.45346253]
[1742068328795,0.30068683,84309.0,84308.0,0.19346253]
[1742068329784,0.30068683,84309.0,84308.0,0.44346253]
[1742068332306,0.30068683,84309.0,84308.0,0.19346253]
[1742068334906,0.30068683,84309.0,84296.0,0.4794263]
[1742068334907,0.1186258,84297.0,84296.0,0.4794263]
[1742068335099,0.1186258,84297.0,84296.0,0.7194272]
[1742068335482,0.1820258,84297.0,84296.0,0.7194272]
[1742068335890,0.1820258,84297.0,84296.0,0.7841272]
[1742068344402,0.1820258,84297.0,84296.0,0.5441272]
[1742068346922,0.1820258,84297.0,84296.0,0.1833272]
[1742068347099,0.1820258,84297.0,84296.0,0.5441272]
[1742068348899,0.1820258,84297.0,84296.0,0.1833272]
[1742068349102,0.1820258,84297.0,84296.0,0.5441272]
[1742068349497,0.1509258,84297.0,84296.0,0.7841272]
[1742068353216,0.1509258,84297.0,84296.0,0.4233272]
[1742068353417,0.1509258,84297.0,84296.0,0.7841272]
[1742068354017,0.1186258,84297.0,84296.0,0.7841272]
[1742068354201,0.05931,84302.0,84301.0,0.1186187]
[1742068354417,0.17331,84302.0,84301.0,0.2115187]
[1742068355821,0.17431,84302.0,84301.0,0.2115187]
[1742068356006,0.17531,84302.0,84301.0,0.2115187]
[1742068356518,0.002,84302.0,84301.0,0.2615187]
[1742068356719,0.00017793,84309.0,84308.0,0.1186103]
[1742068356927,0.11417793,84309.0,84308.0,0.3986103]
[1742068357118,0.23278683,84309.0,84308.0,0.4916103]
[1742068357415,0.23278683,84309.0,84308.0,0.50377741]
[1742068357613,0.11417793,84309.0,84308.0,0.50377741]
[1742068358216,0.00017793,84309.0,84308.0,0.50377741]
[1742068358808,0.00117793,84309.0,84308.0,0.50377741]
[1742068362418,0.1203792,84316.0,84315.0,0.1186004]
[1742068362721,0.2343788,84316.0,84315.0,0.3786004]
[1742068363107,0.2343788,84316.0,84315.0,0.4409004]
[1742068363706,0.2353788,84316.0,84315.0,0.4409004]
[1742068363912,0.233599,84316.0,84315.0,0.1809004]
[1742068365021,0.297299,84316.0,84315.0,0.1809004]
[1742068366924,0.297299,84316.0,84315.0,0.0623]
[1742068367121,0.330499,84316.0,84315.0,0.0623]
[1742068367320,0.330499,84316.0,84315.0,0.1809004]
[1742068380440,0.297299,84316.0,84315.0,0.1809004]
[1742068380738,0.297259,84316.0,84315.0,0.1809004]
[1742068382534,0.297299,84316.0,84315.0,0.1809004]
[1742068382934,0.297299,84316.0,84315.0,0.1809404]
[1742068387042,0.297259,84316.0,84315.0,0.1809404]
[1742068387240,0.297259,84316.0,84315.0,0.1809004]
[1742068387547,0.297299,84316.0,84315.0,0.1809004]
[1742068387849,0.297299,84316.0,84315.0,0.1809404]
[1742068388231,0.233599,84316.0,84315.0,0.1809404]
[1742068389437,0.119639,84316.0,84315.0,0.1809404]
[1742068389637,0.233599,84316.0,84315.0,0.1809404]
[1742068391845,0.233559,84316.0,84315.0,0.1809404]
[1742068392150,0.233559,84316.0,84315.0,0.1809004]
[1742068392534,0.233599,84316.0,84315.0,0.1809004]
[1742068392746,0.233599,84316.0,84315.0,0.1809404]
[1742068396145,0.265399,84316.0,84315.0,0.1809404]
[1742068396949,0.265359,84316.0,84315.0,0.1809404]
[1742068397248,0.265359,84316.0,84315.0,0.1809004]
[1742068397447,0.265399,84316.0,84315.0,0.1809004]
[1742068397950,0.265399,84316.0,84315.0,0.1809404]
[1742068399850,0.296999,84316.0,84315.0,0.1809404]
[1742068401853,0.296959,84316.0,84315.0,0.1809404]
[1742068402248,0.296959,84316.0,84315.0,0.1809004]
[1742068402449,0.296999,84316.0,84315.0,0.1809004]
[1742068402843,0.296999,84316.0,84315.0,0.1809404]
[1742068406975,0.296959,84316.0,84315.0,0.1809404]
[1742068407256,0.296959,84316.0,84315.0,0.1809004]
[1742068408047,0.296999,84316.0,84315.0,0.1809004]
[1742068408359,0.296999,84316.0,84315.0,0.2134404]
[1742068410949,0.566999,84316.0,84315.0,0.06234]
[1742068411258,0.566999,84316.0,84315.0,0.03084]
[1742068411658,0.566999,84316.0,84315.0,0.1494404]
[1742068411846,0.566959,84316.0,84315.0,0.1494404]
[1742068412255,0.566959,84316.0,84315.0,0.1494004]
[1742068412463,0.566999,84316.0,84315.0,0.1494004]
[1742068412756,0.566999,84316.0,84315.0,0.1494404]
[1742068413547,0.296999,84316.0,84315.0,0.1494404]
[1742068416860,0.296959,84316.0,84315.0,0.1494404]
[1742068417162,0.296959,84316.0,84315.0,0.1494004]
[1742068417564,0.296999,84316.0,84315.0,0.1494004]
[1742068417764,0.296999,84316.0,84315.0,0.1494404]
[1742068421869,0.296959,84316.0,84315.0,0.1494404]
[1742068422261,0.296959,84316.0,84315.0,0.1494004]
[1742068422571,0.296999,84316.0,84315.0,0.1494004]
[1742068423273,0.296999,84316.0,84315.0,0.1494404]
[1742068424469,0.296999,84316.0,84315.0,0.1810404]
[1742068426871,0.296959,84316.0,84315.0,0.1810404]
[1742068427270,0.296959,84316.0,84315.0,0.1810004]
[1742068427471,0.296999,84316.0,84315.0,0.1810004]
[1742068427670,0.296999,84316.0,84315.0,0.1810404]
[1742068431962,0.296959,84316.0,84315.0,0.1810404]
[1742068432673,0.296959,84316.0,84315.0,0.1810004]
[1742068433063,0.296999,84316.0,84315.0,0.1810004]
[1742068433263,0.296999,84316.0,84315.0,0.1810404]
[1742068436983,0.296959,84316.0,84315.0,0.1810404]
[1742068437178,0.296959,84316.0,84315.0,0.1810004]
[1742068437363,0.296999,84316.0,84315.0,0.1810004]
[1742068437772,0.296999,84316.0,84315.0,0.1810404]
[1742068440082,0.296999,84316.0,84315.0,0.06244]
[1742068440277,0.329199,84316.0,84315.0,0.06244]
[1742068442576,0.329159,84316.0,84315.0,0.1810404]
[1742068442775,0.329159,84316.0,84315.0,0.1810004]
[1742068442982,0.329199,84316.0,84315.0,0.1810004]
[1742068443385,0.329199,84316.0,84315.0,0.1810404]
[1742068443882,0.329199,84316.0,84315.0,0.06244]
[1742068444284,0.329199,84316.0,84315.0,0.1810404]
[1742068445175,0.329199,84316.0,84315.0,0.06244]
[1742068445888,0.328199,84316.0,84315.0,0.06244]
[1742068446988,0.328159,84316.0,84315.0,0.06244]
[1742068447193,0.328159,84316.0,84315.0,0.0624]
[1742068447386,0.328199,84316.0,84315.0,0.0624]
[1742068447687,0.328199,84316.0,84315.0,0.06244]
[1742068449083,0.295999,84316.0,84315.0,0.1810404]
[1742068451884,0.295959,84316.0,84315.0,0.1810404]
[1742068452385,0.295959,84316.0,84315.0,0.1810004]
[1742068452791,0.295959,84316.0,84315.0,0.1810404]
[1742068453297,0.264159,84316.0,84315.0,0.1810404]
[1742068453794,0.297059,84316.0,84315.0,0.1810404]
[1742068456992,0.297019,84316.0,84315.0,0.1810404]
[1742068457183,0.297019,84316.0,84315.0,0.1810004]
[1742068457382,0.297059,84316.0,84315.0,0.1810004]
[1742068457790,0.297059,84316.0,84315.0,0.1810404]
[1742068461291,4e-05,84316.0,84315.0,0.4110404]
[1742068461490,0.11392,84316.0,84315.0,0.4110404]
[1742068461696,0.232519,84316.0,84315.0,0.4110404]
[1742068462500,0.232479,84316.0,84315.0,0.4110404]
[1742068462803,0.232479,84316.0,84315.0,0.4110004]
[1742068463097,0.232519,84316.0,84315.0,0.4110004]
[1742068463280,0.232519,84316.0,84315.0,0.4110404]
[1742068466896,0.232479,84316.0,84315.0,0.4110404]
[1742068467296,0.232479,84316.0,84315.0,0.4110004]
[1742068467497,0.232519,84316.0,84315.0,0.4110004]
[1742068467796,0.232519,84316.0,84315.0,0.4110404]
[1742068469994,0.232519,84316.0,84315.0,0.7718404]
[1742068471890,0.232479,84316.0,84315.0,0.7718404]
[1742068472392,0.118639,84316.0,84315.0,0.7718004]
[1742068472793,0.118639,84316.0,84315.0,0.7718404]
[1742068477001,0.118599,84316.0,84315.0,0.7718404]
[1742068477199,0.118599,84316.0,84315.0,0.7718004]
[1742068477500,0.118639,84316.0,84315.0,0.7718004]
[1742068477700,0.118639,84316.0,84315.0,0.7718404]
[1742068481604,0.183339,84316.0,84315.0,0.7718404]
[1742068482102,0.183299,84316.0,84315.0,0.7718404]
[1742068482305,0.183299,84316.0,84315.0,0.7718004]
[1742068482501,0.183339,84316.0,84315.0,0.7718004]
[1742068482693,0.183339,84316.0,84315.0,0.7718404]
[1742068486905,0.183299,84316.0,84315.0,0.7718404]
[1742068487204,0.183299,84316.0,84315.0,0.7718004]
[1742068487408,0.183339,84316.0,84315.0,0.7718004]
[1742068487803,0.183339,84316.0,84315.0,0.7718404]
[1742068492007,0.183299,84316.0,84315.0,0.7718404]
[1742068492203,0.183299,84316.0,84315.0,0.7718004]
[1742068492511,0.183339,84316.0,84315.0,0.7718004]
[1742068492701,0.183339,84316.0,84315.0,0.7718404]
[1742068496897,0.183299,84316.0,84315.0,0.7718404]
[1742068497101,0.183299,84316.0,84315.0,0.7718004]
[1742068497604,0.183339,84316.0,84315.0,0.7718004]
[1742068497906,0.183339,84316.0,84315.0,0.7718404]
[1742068498806,0.183339,84316.0,84315.0,0.42324]
[1742068499913,0.183339,84316.0,84315.0,0.5418404]
[1742068501512,0.183339,84316.0,84315.0,0.42324]
[1742068501722,0.1949673,84316.0,84315.0,0.42324]
[1742068502017,0.1949273,84316.0,84315.0,0.42324]
[1742068502216,0.183299,84316.0,84315.0,0.5418004]
[1742068502517,0.183339,84316.0,84315.0,0.5418004]
[1742068502817,0.183339,84316.0,84315.0,0.5418404]
[1742068504813,0.183339,84316.0,84315.0,0.1810404]
[1742068506610,0.183339,84316.0,84315.0,0.4210404]
[1742068506813,0.183339,84316.0,84315.0,0.1810404]
[1742068507020,0.183299,84316.0,84315.0,0.1810404]
[1742068507221,0.183299,84316.0,84315.0,0.1810004]
[1742068507518,0.183339,84316.0,84315.0,0.1810004]
[1742068507712,0.183339,84316.0,84315.0,0.1810404]
[1742068511929,0.183299,84316.0,84315.0,0.1810404]
[1742068512130,0.183299,84316.0,84315.0,0.1810004]
[1742068512530,0.183339,84316.0,84315.0,0.1810004]
[1742068512722,0.183339,84316.0,84315.0,0.1810404]
[1742068513033,0.183339,84316.0,84315.0,0.06244]
[1742068515436,0.183339,84316.0,84315.0,0.1810404]
[1742068517034,0.183299,84316.0,84315.0,0.1810404]
[1742068517227,0.183299,84316.0,84315.0,0.1810004]
[1742068517428,0.183339,84316.0,84315.0,0.1810004]
[1742068517729,0.183339,84316.0,84315.0,0.1810404]
[1742068521938,0.183299,84316.0,84315.0,0.1810404]
[1742068522128,0.183299,84316.0,84315.0,0.1810004]
[1742068522437,0.183339,84316.0,84315.0,0.1810004]
[1742068522739,0.183339,84316.0,84315.0,0.1810404]
[1742068525926,0.183339,84316.0,84315.0,0.2132404]
[1742068527540,0.183299,84316.0,84315.0,0.2132404]
[1742068527738,0.183299,84316.0,84315.0,0.2132004]
[1742068528537,0.183339,84316.0,84315.0,0.2132004]
[1742068528945,0.183339,84316.0,84315.0,0.2132404]
[1742068531844,0.183299,84316.0,84315.0,0.2132404]
[1742068532233,0.183299,84316.0,84315.0,0.2132004]
[1742068532428,0.183339,84316.0,84315.0,0.2132004]
[1742068532844,0.183339,84316.0,84315.0,0.2132404]
[1742068535632,0.150139,84316.0,84315.0,0.2132404]
[1742068536841,0.181199,84316.0,84315.0,0.2132404]
[1742068537237,0.181199,84316.0,84315.0,0.2132004]
[1742068537540,0.181239,84316.0,84315.0,0.2132004]
[1742068537740,0.181239,84316.0,84315.0,0.2132404]
[1742068541748,0.150139,84316.0,84315.0,0.2132404]
[1742068541948,0.150099,84316.0,84315.0,0.2132404]
[1742068542144,0.150099,84316.0,84315.0,0.2132004]
[1742068542645,0.150139,84316.0,84315.0,0.2132404]
[1742068544449,0.180639,84316.0,84315.0,0.2132404]
[1742068547554,0.180599,84316.0,84315.0,0.2132404]
[1742068547753,0.180599,84316.0,84315.0,0.2132004]
[1742068548055,0.180639,84316.0,84315.0,0.2132004]
[1742068548256,0.180639,84316.0,84315.0,0.2132404]
[1742068551856,0.180599,84316.0,84315.0,0.2132404]
[1742068552251,0.180599,84316.0,84315.0,0.2132004]
[1742068552554,0.180639,84316.0,84315.0,0.2132004]
[1742068552752,0.180639,84316.0,84315.0,0.2132404]
[1742068556960,0.180599,84316.0,84315.0,0.2132404]
[1742068557256,0.180599,84316.0,84315.0,0.2132004]
[1742068557459,0.180639,84316.0,84315.0,0.2132004]
[1742068557658,0.180639,84316.0,84315.0,0.2132404]
[1742068561866,0.180599,84316.0,84315.0,0.2132404]
[1742068562257,0.180599,84316.0,84315.0,0.2132004]
[1742068562768,0.180639,84316.0,84315.0,0.2132004]
[1742068563567,0.180639,84316.0,84315.0,0.2132404]
[1742068566967,0.180599,84316.0,84315.0,0.2132404]
[1742068567268,0.180599,84316.0,84315.0,0.2132004]
[1742068567471,0.180639,84316.0,84315.0,0.2132004]
[1742068567968,0.180639,84316.0,84315.0,0.2132404]
[1742068569568,0.180639,84316.0,84315.0,0.5740404]
[1742068571873,0.180599,84316.0,84315.0,0.5740404]
[1742068572168,0.180599,84316.0,84315.0,0.5740004]
[1742068572763,0.180599,84316.0,84315.0,0.2132004]
[1742068572970,0.180639,84316.0,84315.0,0.5740004]
[1742068573268,0.180639,84316.0,84315.0,0.5740404]
[1742068574463,0.180639,84316.0,84315.0,0.2132404]
[1742068574659,0.180639,84316.0,84315.0,0.5740404]
[1742068576265,0.180639,84316.0,84315.0,0.2132404]
[1742068576464,0.180639,84316.0,84315.0,0.5740404]
[1742068576870,0.180599,84316.0,84315.0,0.5740404]
[1742068577266,0.180599,84316.0,84315.0,0.5740004]
[1742068577465,0.180639,84316.0,84315.0,0.5740004]
[1742068577666,0.180639,84316.0,84315.0,0.5740404]
[1742068578573,4e-05,84316.0,84315.0,0.6540404]
[1742068579076,0.06004,84316.0,84315.0,0.6540404]
[1742068580068,0.06004,84316.0,84315.0,0.66786874]
[1742068580365,0.06004,84316.0,84315.0,0.65786874]